bitfinex/quotes_BTCUSD_20230901
["timestamp","ask_amount","ask_price","bid_price","bid_amount"]
[1693600116377,0.0196,25722.0,25721.0,0.57220142]
[1693600116577,0.0196,25722.0,25721.0,0.44184804]
[1693600116810,0.0196,25724.0,25721.0,0.82893482]
[1693600116997,0.0196,25724.0,25723.0,0.1213]
[1693600117537,0.0196,25724.0,25723.0,0.12183985]
[1693600117969,0.0216,25724.0,25723.0,0.12183985]
[1693600118440,0.0196,25724.0,25723.0,0.12183985]
[1693600119025,0.0206,25724.0,25723.0,0.12183985]
[1693600119269,0.0196,25724.0,25723.0,0.12183985]
[1693600119479,0.0206,25724.0,25723.0,0.12183985]
[1693600119689,0.002,25724.0,25723.0,0.95022663]
[1693600119904,0.15439178,25728.0,25725.0,0.12]
[1693600120125,0.0196,25730.0,25728.0,0.1213]
[1693600120360,1.0052,25731.0,25730.0,0.12]
[1693600120361,0.0196,25731.0,25730.0,0.12]
[1693600120585,0.0196,25731.0,25730.0,0.9579882]
[1693600120793,0.0196,25731.0,25730.0,0.9779882]
[1693600120993,0.0196,25731.0,25730.0,0.82708678]
[1693600121417,0.0392,25737.0,25734.0,0.04]
[1693600121638,0.0196,25737.0,25735.0,0.5579882]
[1693600121878,0.0196,25737.0,25736.0,0.4213]
[1693600122089,0.0196,25737.0,25736.0,0.1213]
[1693600122306,0.0196,25737.0,25736.0,0.8392882]
[1693600122518,0.0196,25740.0,25739.0,0.04]
[1693600122761,0.0196,25740.0,25739.0,0.9992882]
[1693600122973,0.0196,25740.0,25739.0,0.84838678]
[1693600123245,0.0196,25740.0,25739.0,0.82838678]
[1693600123881,0.0206,25740.0,25739.0,0.86538678]
[1693600124084,0.0226,25740.0,25739.0,0.92238678]
[1693600124492,0.0226,25740.0,25739.0,0.90238678]
[1693600124697,0.0226,25740.0,25739.0,0.90284841]
[1693600125142,0.0226,25740.0,25739.0,0.96264898]
[1693600125346,0.0226,25740.0,25739.0,0.51576163]
[1693600125551,0.2411096,25740.0,25739.0,0.07446163]
[1693600125960,0.0226,25740.0,25739.0,0.19576163]
[1693600126566,0.24127956,25740.0,25739.0,0.19576163]
[1693600126922,0.24127956,25740.0,25739.0,0.75374983]
[1693600126923,0.0226,25740.0,25739.0,0.75374983]
[1693600127127,0.0934,25743.0,25739.0,1.04414841]
[1693600127128,0.0196,25743.0,25739.0,1.04414841]
[1693600127329,0.0196,25743.0,25742.0,0.1213]
[1693600127633,0.0196,25743.0,25742.0,0.19047523]
[1693600128723,0.0196,25743.0,25742.0,0.19092921]
[1693600128886,0.0206,25743.0,25742.0,0.17875398]
[1693600129481,0.0206,25743.0,25742.0,0.23030968]
[1693600129708,0.0226,25743.0,25742.0,0.23030968]
[1693600130102,0.0206,25743.0,25742.0,0.23030968]
[1693600130450,0.0216,25743.0,25742.0,0.26230968]
[1693600131598,0.25830018,25743.0,25742.0,0.06945398]
[1693600133325,0.10830018,25743.0,25742.0,0.06945398]
[1693600133525,0.2701,25746.0,25742.0,0.06945398]
[1693600133729,0.38708678,25745.0,25742.0,0.06945398]
[1693600134499,0.38708678,25745.0,25742.0,0.03745398]
[1693600134708,0.38708678,25745.0,25742.0,0.14104698]
[1693600135062,0.38808678,25745.0,25742.0,0.17804698]
[1693600135229,0.10001385,25744.0,25742.0,0.17804698]
[1693600135442,0.10001385,25744.0,25742.0,0.037]
[1693600135633,0.10001385,25744.0,25742.0,0.069]
[1693600136276,0.10001385,25744.0,25738.0,0.3]
[1693600136481,0.15483471,25743.0,25742.0,0.069]
[1693600136655,0.10201385,25744.0,25742.0,0.069]
[1693600137227,0.10101385,25744.0,25742.0,0.037]
[1693600137406,0.10201385,25744.0,25742.0,0.037]
[1693600137608,0.002,25744.0,25742.0,0.037]
[1693600137810,0.16352476,25744.0,25742.0,0.037]
[1693600138015,0.10916767,25743.0,25742.0,0.037]
[1693600138281,0.10916767,25743.0,25738.0,0.337]
[1693600138455,0.1551,25742.0,25738.0,0.337]
[1693600138683,0.30993471,25742.0,25738.0,0.3]
[1693600139015,0.1551,25742.0,25738.0,0.3]
[1693600139575,0.1561,25742.0,25738.0,0.337]
[1693600139778,0.1571,25742.0,25738.0,0.374]
[1693600140611,0.31193471,25742.0,25739.0,0.00038185]
[1693600140811,0.1571,25742.0,25739.0,0.00038185]
[1693600140942,0.10653801,25741.0,25739.0,0.00038185]
[1693600141661,0.10653801,25741.0,25739.0,0.037]
[1693600141861,0.10653801,25741.0,25736.0,0.03092985]
[1693600142068,0.26137272,25741.0,25739.0,0.037]
[1693600142395,0.001,25741.0,25739.0,0.24037982]
[1693600142529,0.001,25741.0,25740.0,0.00038113]
[1693600142726,0.002,25741.0,25740.0,0.00038113]
[1693600143152,0.10171523,25741.0,25740.0,0.00038113]
[1693600143351,0.10071523,25741.0,25740.0,0.00038113]
[1693600143551,0.10071523,25741.0,25739.0,0.037]
[1693600143895,0.10071523,25741.0,25740.0,0.037]
[1693600144227,0.10071523,25741.0,25740.0,0.38600142]
[1693600144228,0.002,25741.0,25740.0,0.38600142]
[1693600144432,0.002,25741.0,25740.0,0.64218678]
[1693600144633,0.001,25741.0,25740.0,0.60556791]
[1693600144921,0.227,25743.0,25740.0,0.56856791]
[1693600145123,0.001,25741.0,25740.0,0.18148113]
[1693600145398,0.227,25743.0,25740.0,0.18148113]
[1693600145600,0.227,25743.0,25741.0,0.02]
[1693600146145,0.1606,25747.0,25742.0,0.18045338]
[1693600146347,0.2205,25746.0,25742.0,0.18580363]
[1693600146732,0.2205,25746.0,25741.0,0.02]
[1693600146952,0.2205,25746.0,25741.0,0.5579882]
[1693600147144,0.2205,25746.0,25742.0,0.18103209]
[1693600147349,0.001,25743.0,25741.0,0.44408678]
[1693600147503,0.2205,25746.0,25741.0,0.40708678]
[1693600147709,0.2215,25746.0,25743.0,0.00037898]
[1693600148098,0.1531,25745.0,25743.0,0.00037898]
[1693600148322,0.1531,25745.0,25744.0,0.03929422]
[1693600148744,0.1531,25745.0,25744.0,0.03967248]
[1693600150048,0.1541,25745.0,25744.0,0.05867248]
[1693600150454,0.1551,25745.0,25744.0,0.04437826]
[1693600150662,0.1551,25745.0,25744.0,0.1999597]
[1693600151294,0.1551,25745.0,25744.0,0.58704648]
[1693600151295,0.002,25745.0,25744.0,0.58704648]
[1693600151623,0.002,25745.0,25744.0,0.60704648]
[1693600152052,0.002,25745.0,25744.0,0.61256504]
[1693600152460,0.002,25745.0,25744.0,0.57226504]
[1693600153500,0.002,25745.0,25744.0,0.87226504]
[1693600153849,0.1574,25748.0,25745.0,0.18046572]
[1693600154049,0.0196,25750.0,25747.0,0.1208]
[1693600154294,0.0196,25750.0,25747.0,0.27170142]
[1693600154509,0.0196,25750.0,25747.0,0.1208]
[1693600154740,0.0196,25750.0,25748.0,0.0003754]
[1693600154741,0.1857,25750.0,25748.0,0.0003754]
[1693600155160,0.1977,25750.0,25748.0,0.0003754]
[1693600155675,0.1977,25750.0,25747.0,0.1208]
[1693600156094,0.1977,25750.0,25747.0,0.1218]
[1693600156095,0.2157,25750.0,25747.0,0.1218]
[1693600156496,0.32312482,25750.0,25747.0,0.1218]
[1693600157073,0.31112482,25750.0,25747.0,0.28463002]
[1693600157268,0.32612482,25750.0,25748.0,0.002]
[1693600157435,0.29312482,25750.0,25747.0,0.28363002]
[1693600157631,0.29512482,25750.0,25747.0,0.35263002]
[1693600158021,0.29412482,25750.0,25747.0,0.31563002]
[1693600158226,0.29312482,25750.0,25747.0,0.28363002]
[1693600158458,0.1877,25750.0,25748.0,0.09686871]
[1693600158667,0.1867,25750.0,25748.0,0.07186871]
[1693600158872,0.1857,25750.0,25748.0,0.05286871]
[1693600159017,0.1867,25750.0,25748.0,0.05286871]
[1693600159224,0.1877,25750.0,25748.0,0.05286871]
[1693600160399,0.1867,25750.0,25748.0,0.05286871]
[1693600160600,0.1867,25750.0,25748.0,0.07186871]
[1693600160601,0.1877,25750.0,25748.0,0.07186871]
[1693600161010,0.24069537,25749.0,25748.0,0.07186871]
[1693600161462,0.24069537,25749.0,25748.0,0.09686871]
[1693600161665,0.02786595,25747.0,25744.0,0.3]
[1693600161878,0.24069537,25746.0,25744.0,0.3]
[1693600162703,0.24069537,25746.0,25745.0,0.00037755]
[1693600163199,0.39989537,25746.0,25745.0,0.00037755]
[1693600163986,0.40289537,25746.0,25745.0,0.00037755]
[1693600164187,0.40289537,25746.0,25745.0,0.18525212]
[1693600164390,0.39989537,25746.0,25745.0,0.18525212]
[1693600164591,0.40289537,25746.0,25745.0,0.22225212]
[1693600165165,0.40589537,25746.0,25745.0,0.25925212]
[1693600166929,0.49384202,25746.0,25745.0,0.07437755]
[1693600168631,0.49384202,25746.0,25745.0,0.074]
[1693600170268,0.8809288,25746.0,25745.0,0.074]
[1693600170441,0.8809288,25746.0,25745.0,0.05853031]
[1693600170646,0.9517288,25746.0,25745.0,0.05853031]
[1693600170846,0.9479488,25746.0,25745.0,0.05853031]
[1693600171064,1.5943228,25746.0,25745.0,0.05853031]
[1693600171251,1.5941428,25746.0,25745.0,0.05853031]
[1693600171426,1.5946228,25746.0,25745.0,0.05853031]
[1693600172178,1.5921628,25746.0,25745.0,0.05853031]
[1693600172404,1.5906028,25746.0,25745.0,0.05853031]
[1693600172612,1.5898228,25746.0,25745.0,0.05853031]
[1693600172811,1.5895228,25746.0,25745.0,0.05853031]
[1693600173012,1.5869428,25746.0,25745.0,0.05853031]
[1693600173234,1.5891628,25746.0,25745.0,0.05853031]
[1693600173428,1.5891028,25746.0,25745.0,0.05853031]
[1693600173655,1.5884428,25746.0,25745.0,0.05853031]
[1693600173984,1.5736228,25746.0,25745.0,0.05853031]
[1693600174184,1.5733828,25746.0,25745.0,0.05853031]
[1693600174396,1.5720028,25746.0,25745.0,0.05853031]
[1693600174810,1.5701428,25746.0,25745.0,0.05853031]
[1693600175019,1.99227615,25746.0,25745.0,0.05853031]
[1693600175221,3.33100415,25746.0,25745.0,0.05853031]
[1693600175427,3.34294415,25746.0,25745.0,0.05853031]
[1693600175634,3.34510415,25746.0,25745.0,0.05853031]
[1693600175836,3.34342415,25746.0,25745.0,0.05853031]
[1693600176037,3.42812431,25746.0,25745.0,0.05853031]
[1693600176241,3.42278431,25746.0,25745.0,0.05853031]
[1693600176444,3.41942431,25746.0,25745.0,0.037]
[1693600176645,0.14,25744.0,25739.0,0.09199252]
[1693600176850,0.14,25744.0,25738.0,0.13798878]
[1693600176851,0.78261686,25743.0,25738.0,0.09199252]
[1693600177053,0.24069537,25742.0,25738.0,0.09199252]
[1693600177254,0.24069537,25742.0,25738.0,0.23771414]
[1693600177255,0.40499537,25741.0,25738.0,0.23771414]
[1693600177461,0.24069537,25740.0,25738.0,0.23771414]
[1693600177654,0.1643,25741.0,25739.0,0.00038185]
[1693600177776,0.1643,25741.0,25739.0,0.06238185]
[1693600177982,0.1643,25741.0,25739.0,0.03038185]
[1693600178384,0.1673,25741.0,25739.0,0.09821743]
[1693600179021,0.1673,25741.0,25740.0,0.6787882]
[1693600179022,0.003,25741.0,25740.0,0.6787882]
[1693600179219,0.11567857,25744.0,25740.0,0.9787882]
[1693600179220,0.03699857,25744.0,25740.0,0.9787882]
[1693600179496,0.03699857,25744.0,25743.0,0.1208]
[1693600179634,0.03699857,25744.0,25743.0,0.28343478]
[1693600180437,0.03899857,25744.0,25743.0,0.28343478]
[1693600180834,0.03899857,25744.0,25743.0,0.28543478]
[1693600181034,0.08099857,25744.0,25743.0,0.28743478]
[1693600181798,0.08099857,25744.0,25743.0,0.28781376]
[1693600182314,0.08099857,25744.0,25743.0,0.26926041]
[1693600184503,0.08099857,25744.0,25743.0,0.27115694]
[1693600184685,0.08099857,25744.0,25743.0,0.12517898]
[1693600184917,0.08099857,25744.0,25743.0,0.28866286]
[1693600186489,0.04269857,25747.0,25743.0,0.28866286]
[1693600186703,0.04269857,25747.0,25744.0,0.17898019]
[1693600187644,0.04269857,25747.0,25745.0,0.1526354]
[1693600188058,0.07069857,25747.0,25745.0,0.1526354]
[1693600188602,0.61947492,25746.0,25744.0,0.002]
[1693600188818,0.38708678,25746.0,25744.0,0.002]
[1693600189221,0.38708678,25746.0,25744.0,0.17260241]
[1693600189429,0.38708678,25746.0,25745.0,0.003]
[1693600189633,0.61950035,25746.0,25745.0,0.05430697]
[1693600189788,0.78170035,25746.0,25745.0,0.04830697]
[1693600190310,0.79970035,25746.0,25745.0,0.04830697]
[1693600190714,0.83170035,25746.0,25745.0,0.003]
[1693600191088,0.93885945,25746.0,25745.0,0.003]
[1693600191507,0.92085945,25746.0,25745.0,0.003]
[1693600192112,0.93885945,25746.0,25745.0,0.006]
[1693600195973,1.03210213,25746.0,25745.0,0.006]
[1693600196183,0.93885945,25746.0,25745.0,0.006]
[1693600197028,0.44461357,25746.0,25745.0,0.006]
[1693600197251,0.2122,25746.0,25745.0,0.006]
[1693600197483,0.44459946,25746.0,25745.0,0.006]
[1693600197958,0.44459946,25746.0,25745.0,0.1770233]
[1693600200344,0.44459946,25746.0,25745.0,0.006]
[1693600200546,0.56172614,25746.0,25745.0,0.006]
[1693600201027,1.0420556,25746.0,25745.0,0.006]
[1693600201202,1.6246696,25746.0,25745.0,0.006]
[1693600201407,1.0420556,25746.0,25745.0,0.006]
[1693600202505,1.18191962,25746.0,25745.0,0.006]
[1693600203327,2.47101826,25746.0,25745.0,0.006]
[1693600203553,2.46885826,25746.0,25745.0,0.006]
[1693600203837,3.3672603,25746.0,25745.0,0.006]
[1693600204035,3.18809494,25746.0,25745.0,0.006]
[1693600204233,3.6754745,25746.0,25745.0,0.006]
[1693600204436,1.25960714,25746.0,25745.0,0.006]
[1693600204839,1.16644225,25746.0,25745.0,0.006]
[1693600205197,0.77935547,25746.0,25745.0,0.006]
[1693600205396,0.91909015,25746.0,25745.0,0.006]
[1693600205601,0.89909015,25746.0,25745.0,0.006]
[1693600206021,1.15850092,25746.0,25745.0,0.006]
[1693600206238,2.90749558,25746.0,25745.0,0.006]
[1693600206448,2.45708097,25746.0,25745.0,0.1627549]
[1693600206656,0.65776159,25746.0,25745.0,0.1627549]
[1693600208608,0.44459946,25746.0,25745.0,0.1268]
[1693600208837,0.05,25746.0,25745.0,0.1268]
[1693600209595,0.05,25746.0,25745.0,0.2622302]
[1693600213358,0.05,25746.0,25745.0,0.1268]
[1693600213584,0.05,25746.0,25745.0,0.25699676]
[1693600213764,0.05,25746.0,25745.0,0.1268]
[1693600213968,0.05,25746.0,25745.0,0.3018787]
[1693600214172,0.05,25746.0,25745.0,0.1268]
[1693600214788,0.05,25746.0,25745.0,0.4268]
[1693600215002,0.032,25746.0,25745.0,0.4238]
[1693600215529,0.017,25746.0,25745.0,0.4218]
[1693600215727,0.02,25746.0,25745.0,0.4218]
[1693600216079,0.003,25746.0,25745.0,0.4208]
[1693600216313,0.008,25746.0,25745.0,0.58484001]
[1693600216522,0.008,25746.0,25745.0,0.4208]
[1693600217449,0.008,25746.0,25745.0,0.4408]
[1693600221640,0.008,25746.0,25745.0,0.4408]
[1693600222686,0.0196,25750.0,25745.0,0.4408]
[1693600222687,0.0196,25750.0,25749.0,0.04]
[1693600223002,0.11276213,25757.0,25756.0,0.18]
[1693600223003,0.011362,25757.0,25756.0,0.18]
[1693600223127,0.34004804,25767.0,25757.0,0.04]
[1693600223128,0.33846213,25766.0,25757.0,0.04]
[1693600223358,0.23138306,25765.0,25758.0,0.5379882]
[1693600223569,0.23138306,25765.0,25759.0,0.32]
[1693600223769,0.38818306,25765.0,25760.0,0.15090142]
[1693600223984,0.1568,25765.0,25764.0,0.1208]
[1693600224188,0.23137764,25765.0,25764.0,0.15090142]
[1693600224389,0.23337764,25765.0,25764.0,0.1208]
[1693600224599,0.23337764,25765.0,25761.0,0.15324844]
[1693600224600,0.23137764,25765.0,25762.0,0.1208]
[1693600224920,0.23237764,25765.0,25762.0,0.1208]
[1693600225122,0.23137764,25764.0,25762.0,0.1208]
[1693600225873,0.23137764,25764.0,25761.0,0.24510514]
[1693600226486,0.23137764,25764.0,25762.0,0.0005251]
[1693600226688,0.23137764,25764.0,25762.0,0.07687742]
[1693600227427,0.23537764,25764.0,25762.0,0.07687742]
[1693600227619,0.13692853,25764.0,25762.0,0.07687742]
[1693600228641,0.13692853,25764.0,25762.0,0.07635232]
[1693600230542,0.007,25764.0,25762.0,0.07635232]
[1693600233136,0.09948236,25764.0,25761.0,0.1208]
[1693600233337,0.79270571,25763.0,25756.0,0.1208]
[1693600233501,0.12079536,25760.0,25757.0,0.3]
[1693600233700,0.27563007,25760.0,25757.0,0.3]
[1693600234115,0.12079536,25760.0,25758.0,0.1208]
[1693600234459,0.12079536,25760.0,25759.0,0.1432494]
[1693600234758,0.12279536,25760.0,25759.0,0.1437764]
[1693600234961,0.12279536,25760.0,25759.0,0.000527]
[1693600235162,0.12279536,25760.0,25759.0,0.121327]
[1693600235163,0.12179536,25760.0,25759.0,0.121327]
[1693600235387,0.12179536,25760.0,25759.0,0.50841378]
[1693600235589,0.12179536,25760.0,25759.0,0.52841378]
[1693600235991,0.12179536,25760.0,25759.0,0.82841378]
[1693600236513,0.12379536,25760.0,25759.0,0.82841378]
[1693600236702,0.12079536,25760.0,25759.0,0.82841378]
[1693600236907,0.12379536,25760.0,25759.0,0.89941378]
[1693600237659,0.12079536,25760.0,25759.0,0.82841378]
[1693600237867,0.12179536,25760.0,25759.0,0.86541378]
[1693600238063,0.12379536,25760.0,25759.0,0.90241378]
[1693600238263,0.12179536,25760.0,25759.0,0.86541378]
[1693600238536,0.12079536,25760.0,25759.0,0.82841378]
[1693600238735,0.12079536,25760.0,25759.0,0.441327]
[1693600239519,0.12279536,25760.0,25759.0,0.477327]
[1693600239721,0.12379536,25760.0,25759.0,0.89941378]
[1693600245474,0.12379536,25760.0,25759.0,0.92994369]
[1693600249533,2.53341085,25760.0,25759.0,0.07152621]
[1693600249730,2.53341085,25760.0,25752.0,0.09212592]
[1693600249731,2.89749846,25760.0,25752.0,0.09212592]
[1693600249934,0.77824755,25759.0,25753.0,0.17533617]
[1693600250157,0.58235,25758.0,25751.0,0.21292592]
[1693600250358,0.54192149,25757.0,25753.0,0.06591849]
[1693600250950,0.69942149,25757.0,25753.0,0.06591849]
[1693600251146,0.54458678,25757.0,25753.0,0.06591849]
[1693600251546,0.54458678,25757.0,25754.0,0.0005059]
[1693600251792,0.70192978,25757.0,25754.0,0.0005059]
[1693600252588,0.70292978,25757.0,25753.0,0.031]
[1693600252793,0.12178727,25756.0,25753.0,0.031]
[1693600252954,0.12178727,25756.0,25753.0,0.015]
[1693600253156,0.12178727,25756.0,25751.0,0.35023155]
[1693600253354,0.27662198,25756.0,25754.0,0.005]
[1693600253683,0.12178727,25756.0,25754.0,0.005]
[1693600253883,0.12178727,25756.0,25754.0,0.003]
[1693600254252,0.312843,25757.0,25754.0,0.17066329]
[1693600254464,0.23363583,25756.0,25755.0,0.00050507]
[1693600254645,0.23263583,25756.0,25755.0,0.00050507]
[1693600255007,0.22663583,25756.0,25755.0,0.00050507]
[1693600255828,0.22563583,25756.0,25755.0,0.00050507]
[1693600256250,0.33827728,25756.0,25755.0,0.00050507]
[1693600256876,0.34927728,25756.0,25755.0,0.00150507]
[1693600257251,0.35927728,25756.0,25755.0,0.00250507]
[1693600257683,0.10228792,25755.0,25751.0,0.14003418]
[1693600257889,0.22563583,25754.0,25752.0,0.57991335]
[1693600258082,0.25712263,25755.0,25752.0,0.1208]
[1693600258434,0.10228792,25755.0,25752.0,0.1208]
[1693600258756,0.10228792,25755.0,25753.0,0.00047066]
[1693600259343,0.10528792,25755.0,25753.0,0.00047066]
[1693600259963,0.10228792,25755.0,25753.0,0.00047066]
[1693600260322,0.10528792,25755.0,25753.0,0.03147066]
[1693600262617,0.39008678,25755.0,25753.0,0.03147066]
[1693600262819,0.09487849,25754.0,25753.0,0.03147066]
[1693600263613,0.09487849,25754.0,25753.0,0.01547066]
[1693600263942,0.002,25754.0,25753.0,0.01647066]
[1693600264166,0.002,25754.0,25753.0,0.59635624]
[1693600264401,0.002,25754.0,25753.0,0.91635624]
[1693600265235,0.003,25754.0,25753.0,0.93135624]
[1693600265682,0.003,25754.0,25753.0,1.31235624]
[1693600265879,0.003,25754.0,25753.0,1.16145267]
[1693600266081,0.003,25754.0,25753.0,1.16154661]
[1693600266282,0.003,25754.0,25753.0,0.93135624]
[1693600266749,0.003,25754.0,25753.0,1.16153588]
[1693600266966,0.003,25754.0,25753.0,1.07049167]
[1693600267139,0.003,25754.0,25753.0,0.93135624]
[1693600268053,0.003,25754.0,25753.0,1.31844302]
[1693600269918,0.9856,25760.0,25758.0,0.12]
[1693600270124,0.9856,25760.0,25759.0,1.18300286]
[1693600270331,1.1679,25766.0,25759.0,1.87235676]
[1693600270546,0.20715157,25765.0,25761.0,0.09210238]
[1693600270767,0.20715157,25765.0,25762.0,0.29170142]
[1693600270967,0.20715157,25765.0,25763.0,0.13762344]
[1693600271167,0.20715157,25765.0,25763.0,0.28852486]
[1693600271372,0.20715157,25765.0,25763.0,0.13762344]
[1693600271961,1.381,25766.0,25763.0,0.13762344]
[1693600272173,0.38708678,25765.0,25760.0,0.23025595]
[1693600272377,0.46362878,25764.0,25763.0,0.002]
[1693600272584,0.69588085,25764.0,25763.0,0.002]
[1693600272793,0.69588085,25764.0,25759.0,0.44726353]
[1693600272995,0.20701024,25763.0,25759.0,0.98525173]
[1693600273199,0.25661854,25764.0,25763.0,0.002]
[1693600273430,0.30892506,25764.0,25763.0,0.004]
[1693600273789,0.30892506,25764.0,25763.0,0.002]
[1693600273988,0.31092506,25764.0,25763.0,0.002]
[1693600274265,0.30892506,25764.0,25763.0,0.002]
[1693600274584,0.33492506,25764.0,25763.0,0.004]
[1693600274942,0.33492506,25764.0,25763.0,0.002]
[1693600274943,0.72201184,25764.0,25763.0,0.002]
[1693600275177,0.72401184,25764.0,25763.0,0.002]
[1693600275529,0.72201184,25764.0,25763.0,0.002]
[1693600276336,0.74901184,25764.0,25763.0,0.004]
[1693600277365,0.36192506,25764.0,25763.0,0.004]
[1693600278098,0.15478383,25764.0,25763.0,0.004]
[1693600278303,1.27267616,25764.0,25763.0,0.004]
[1693600278503,1.35020733,25764.0,25763.0,0.004]
[1693600278706,1.54450496,25764.0,25763.0,0.004]
[1693600278910,1.5471418,25764.0,25763.0,0.004]
[1693600279112,2.01461433,25764.0,25763.0,0.004]
[1693600279316,2.00981433,25764.0,25763.0,0.004]
[1693600279524,1.46682112,25764.0,25763.0,0.004]
[1693600280736,0.76381412,25764.0,25763.0,0.004]
[1693600280939,0.37672734,25764.0,25763.0,0.004]
[1693600281143,0.16961379,25764.0,25763.0,0.004]
[1693600285493,0.053,25764.0,25763.0,0.13191271]
[1693600289575,0.053,25764.0,25763.0,0.13237505]
[1693600289780,0.053,25764.0,25763.0,0.00446234]
[1693600291455,0.053,25764.0,25763.0,0.004]
[1693600291865,0.14578059,25764.0,25763.0,0.004]
[1693600297650,0.35294048,25764.0,25763.0,0.004]
[1693600298427,0.053,25764.0,25763.0,0.004]
[1693600298644,0.77462158,25769.0,25763.0,0.004]
[1693600298645,0.0196,25769.0,25768.0,0.18]
[1693600298853,0.0196,25771.0,25768.0,0.18]
[1693600298854,0.0196,25771.0,25770.0,0.18]
[1693600299048,0.0196,25771.0,25770.0,1.0179882]
[1693600299252,0.1596,25782.0,25770.0,1.0179882]
[1693600299253,0.11239862,25786.0,25784.0,0.08]
[1693600299452,0.09279862,25798.0,25791.0,0.16990994]
[1693600299708,0.23188597,25801.0,25797.0,0.24081136]
[1693600299882,0.08411983,25802.0,25798.0,0.36990994]
[1693600300053,0.18559724,25803.0,25799.0,0.17090142]
[1693600300054,0.01009006,25800.0,25799.0,0.17090142]
[1693600300253,0.01009006,25800.0,25795.0,0.09171437]
[1693600300254,0.01009006,25797.0,25795.0,0.09171437]
[1693600300452,0.01999343,25798.0,25794.0,0.45934744]
[1693600300453,0.01009006,25796.0,25794.0,0.45934744]
[1693600300656,0.01009006,25796.0,25793.0,0.18404922]
[1693600300657,0.01009006,25796.0,25795.0,0.13757155]
[1693600300908,0.01009006,25794.0,25793.0,0.09171437]
[1693600301121,0.01009006,25790.0,25789.0,0.22928592]
[1693600301349,0.0196,25793.0,25791.0,0.03027018]
[1693600301582,0.0196,25793.0,25792.0,0.31912284]
[1693600301791,0.0196,25793.0,25792.0,0.84993801]
[1693600301993,0.0196,25793.0,25792.0,1.46340251]
[1693600302194,0.0196,25793.0,25792.0,1.18993801]
[1693600302419,0.01009006,25800.0,25794.0,0.06990994]
[1693600302616,0.1663,25802.0,25799.0,0.09093597]
[1693600302617,0.002,25802.0,25799.0,0.09093597]
[1693600302815,0.01009006,25802.0,25800.0,0.1604]
[1693600303016,0.01009006,25802.0,25801.0,0.3]
[1693600303452,0.01009006,25802.0,25801.0,0.30044009]
[1693600303852,0.01209006,25802.0,25801.0,0.30044009]
[1693600304061,0.01009006,25802.0,25801.0,0.00044009]
[1693600304256,0.01009006,25802.0,25801.0,0.06044009]
[1693600304460,1.29992684,25802.0,25801.0,0.06]
[1693600304671,1.29992684,25802.0,25793.0,0.03515533]
[1693600304672,0.01009006,25794.0,25793.0,0.03515533]
[1693600304891,0.55201155,25794.0,25793.0,0.03515533]
[1693600305091,0.25000996,25794.0,25793.0,0.03515533]
[1693600305491,0.01009006,25794.0,25793.0,0.03566495]
[1693600305996,0.39817684,25794.0,25793.0,0.03566495]
[1693600306239,0.65360862,25794.0,25793.0,0.03566495]
[1693600306680,0.39817684,25794.0,25793.0,0.04715533]
[1693600306885,0.39817684,25794.0,25793.0,0.03515533]
[1693600306886,0.39717684,25794.0,25793.0,0.03515533]
[1693600307103,0.97870684,25794.0,25793.0,0.03515533]
[1693600307316,0.64957547,25794.0,25793.0,0.03615533]
[1693600307516,0.41217684,25794.0,25793.0,0.03615533]
[1693600307722,0.41217684,25794.0,25793.0,0.03715533]
[1693600307723,0.51711284,25794.0,25793.0,0.03715533]
[1693600308136,0.78191534,25794.0,25793.0,0.03715533]
[1693600308696,0.51711284,25794.0,25793.0,0.03715533]
[1693600308866,0.73733504,25794.0,25793.0,0.03715533]
[1693600309283,0.51711284,25794.0,25793.0,0.03715533]
[1693600309886,0.76468717,25794.0,25793.0,0.03715533]
[1693600310094,0.73154473,25794.0,25793.0,0.03715533]
[1693600310567,0.51711284,25794.0,25793.0,0.03715533]
[1693600311654,0.73871515,25794.0,25793.0,0.03715533]
[1693600312078,0.01009006,25792.0,25791.0,0.00242551]
[1693600312226,0.50702278,25794.0,25792.0,0.02018012]
[1693600312431,0.38708678,25793.0,25792.0,0.02018012]
[1693600313039,0.63365519,25793.0,25792.0,0.02018012]
[1693600313447,0.63742132,25793.0,25792.0,0.02018012]
[1693600313651,0.38708678,25793.0,25792.0,0.02018012]
[1693600313858,0.38808678,25793.0,25792.0,0.02018012]
[1693600314628,0.59190847,25793.0,25792.0,0.02018012]
[1693600315218,0.38808678,25793.0,25786.0,0.19760563]
[1693600315418,0.38808678,25793.0,25785.0,0.039]
[1693600315419,0.06,25791.0,25785.0,0.039]
[1693600315592,0.54192149,25790.0,25785.0,0.039]
[1693600316395,0.54192149,25790.0,25786.0,0.074]
[1693600316597,0.54192149,25790.0,25786.0,0.037]
[1693600316598,0.38708678,25790.0,25786.0,0.037]
[1693600316804,0.38708678,25790.0,25785.0,0.039]
[1693600316986,0.54192149,25790.0,25785.0,0.039]
[1693600317185,0.54792149,25790.0,25785.0,0.113]
[1693600317549,0.006,25790.0,25786.0,0.1605]
[1693600317708,0.006,25790.0,25786.0,0.4605]
[1693600318060,0.2482398,25790.0,25786.0,0.4605]
[1693600318426,0.10056,25793.0,25786.0,0.4605]
[1693600318554,0.10056,25793.0,25787.0,0.38708678]
[1693600318790,3.295798,25800.0,25787.0,0.38708678]
[1693600318791,2.5744,25800.0,25791.0,0.1605]
[1693600319005,1.24684,25800.0,25796.0,0.1605]
[1693600319216,0.9856,25805.0,25797.0,0.38708678]
[1693600319430,0.9856,25805.0,25798.0,0.34]
[1693600319431,0.15509,25801.0,25798.0,0.34]
[1693600319632,0.581319,25804.0,25803.0,0.31018]
[1693600319830,0.38708678,25804.0,25803.0,0.31018]
[1693600320053,1.54969678,25804.0,25803.0,0.31018]
[1693600320679,0.27851616,25804.0,25803.0,0.31018]
[1693600321725,0.27851616,25804.0,25803.0,0.31118]
[1693600321726,0.002,25804.0,25803.0,0.31118]
[1693600321932,0.017,25804.0,25803.0,0.31218]
[1693600322136,0.1611,25807.0,25803.0,0.31018]
[1693600322341,0.1611,25807.0,25806.0,0.1605]
[1693600322597,0.2284484,25804.0,25803.0,0.31018]
[1693600322801,2.29189978,25807.0,25803.0,0.31018]
[1693600322974,0.001,25804.0,25803.0,0.017]